bitfinex-derivatives/quotes_ETHF0:USTF0_20250123
["timestamp","ask_amount","ask_price","bid_price","bid_amount"]
[1737669464528,3.2078,3251.0,3250.1,0.00461574]
[1737669464727,3.2078,3251.0,3250.6,0.61515]
[1737669465037,3.2078,3251.0,3250.1,0.68731574]
[1737669465222,0.6685,3251.4,3250.8,3.2078]
[1737669465429,0.61494,3251.8,3250.9,0.6151]
[1737669465729,0.61495,3251.8,3251.3,3.82283]
[1737669466133,2.91460892,3251.9,3251.3,3.82283]
[1737669466134,0.61496,3251.7,3251.3,3.82283]
[1737669466429,3.2078,3252.1,3251.3,3.2078]
[1737669466635,3.82268,3252.1,3251.6,0.61497]
[1737669467139,3.82268,3252.1,3251.3,3.2078]
[1737669467338,3.2078,3252.1,3251.7,0.61496]
[1737669467540,2.91460892,3251.9,3251.3,3.2078]
[1737669467733,3.82269,3252.1,3251.6,0.61496]
[1737669467935,0.61481,3252.5,3252.1,0.61487]
[1737669468230,1.286,3252.6,3252.1,0.61487]
[1737669468530,0.61482,3252.5,3252.1,3.2078]
[1737669468841,0.61485,3252.3,3252.1,3.2078]
[1737669469040,0.6712,3252.6,3252.1,3.2078]
[1737669469339,0.61485,3252.3,3252.1,3.2078]
[1737669469840,0.6712,3252.6,3252.1,3.2078]
[1737669470034,3.8688,3253.0,3252.1,3.2078]
[1737669470435,0.61487,3252.2,3252.0,0.00461574]
[1737669470635,3.2078,3252.6,3252.0,0.00461574]
[1737669470938,2.91460892,3252.8,3252.0,0.00461574]
[1737669471137,0.61486,3252.3,3252.0,0.00461574]
[1737669471339,2.91460892,3252.8,3252.0,0.00461574]
[1737669471641,0.61488,3252.1,3252.0,0.00461574]
[1737669472140,0.61487,3252.2,3252.0,0.00461574]
[1737669472339,0.61488,3252.1,3252.0,0.00461574]
[1737669475137,0.61482,3252.4,3252.0,0.00461574]
[1737669475537,0.61484,3252.4,3252.0,0.61950574]
[1737669476243,0.61484,3252.4,3252.0,0.00461574]
[1737669477044,0.61484,3252.3,3252.0,0.00461574]
[1737669477244,0.61484,3252.3,3252.0,0.61951574]
[1737669477649,0.667,3252.5,3252.0,0.00461574]
[1737669477841,0.61485,3252.3,3252.0,0.00461574]
[1737669478040,0.61486,3252.3,3252.0,0.00461574]
[1737669478947,0.61488,3252.1,3252.0,0.00461574]
[1737669479540,0.61486,3252.3,3252.0,0.61950574]
[1737669479747,3.2078,3252.6,3252.0,0.61950574]
[1737669480049,3.2078,3252.6,3252.0,0.00461574]
[1737669480349,0.61488,3252.1,3252.0,0.00461574]
[1737669482451,3.2078,3252.6,3252.0,0.00461574]
[1737669482845,0.61488,3252.1,3252.0,0.00461574]
[1737669483457,1.53729,3252.0,3251.0,0.24089139]
[1737669483756,0.6228,3252.0,3251.1,2.39793749]
[1737669484044,2.39793749,3252.4,3251.6,3.2078]
[1737669484351,5.60573749,3252.1,3251.2,3.2078]
[1737669484848,0.615,3251.5,3251.3,0.00461574]
[1737669485049,0.615,3251.5,3251.4,40.8]
[1737669485450,3.2078,3251.7,3251.3,0.00461574]
[1737669485644,0.61501,3251.4,3251.3,0.00461574]
[1737669485849,0.615,3251.5,3251.3,0.00461574]
[1737669486142,3.2078,3251.7,3251.3,0.00461574]
[1737669486345,0.61501,3251.4,3251.3,0.00461574]
[1737669490553,1.28851,3251.4,3251.3,0.00461574]
[1737669498458,1.29232748,3251.4,3251.3,0.00461574]
[1737669498658,0.67731748,3251.4,3250.5,40.8]
[1737669498866,0.61516,3250.6,3250.5,40.8]
[1737669499653,3.82296,3250.6,3250.5,40.8]
[1737669500052,3.2078,3250.6,3250.2,0.00461574]
[1737669500252,0.61522,3250.3,3250.2,0.00461574]
[1737669509663,0.61522,3250.3,3250.2,5.74e-06]
[1737669509959,5.61522,3250.3,3250.2,5.74e-06]
[1737669510449,5.90385743,3250.3,3250.2,5.74e-06]
[1737669510649,6.57505743,3250.3,3250.2,5.74e-06]
[1737669510860,6.89496328,3250.3,3250.2,5.74e-06]
[1737669511460,6.60632585,3250.3,3250.2,5.74e-06]
[1737669511656,1.60632585,3250.3,3250.2,5.74e-06]
[1737669511858,0.93512585,3250.3,3250.2,5.74e-06]
[1737669512064,0.61522,3250.3,3250.2,5.74e-06]
[1737669515970,0.61519,3250.5,3250.2,5.74e-06]
[1737669516162,0.61519,3250.5,3250.2,1.97120574]
[1737669516764,3.21241574,3250.6,3250.2,1.97120574]
[1737669517067,0.61512,3250.9,3250.5,0.61518]
[1737669517266,0.61512,3250.9,3250.8,3.2078]
[1737669519367,0.61513,3250.8,3250.4,3.82299]
[1737669519664,0.61515,3250.7,3250.4,3.2078]
[1737669519968,0.61513,3250.8,3250.4,3.82299]
[1737669520169,0.61513,3250.8,3250.4,3.2078]
[1737669520373,0.3248954,3251.2,3250.4,3.2078]
[1737669520571,0.61516,3250.7,3250.4,3.2078]
[1737669520761,0.61507,3251.1,3250.4,3.82299]
[1737669521065,0.3248954,3251.2,3250.4,3.2078]
[1737669521264,0.3248954,3251.2,3250.8,3.82292]
[1737669521466,0.00461574,3251.2,3250.9,1.9737]
[1737669521666,0.00461574,3251.2,3250.9,42.7737]
[1737669521866,0.61967574,3251.2,3250.9,42.7737]
[1737669522062,0.00461574,3251.2,3250.9,1.9737]
[1737669522265,0.61509,3251.0,3250.9,1.9737]
[1737669522668,0.61509,3251.0,3250.9,42.7737]
[1737669523068,0.00461574,3251.2,3250.9,1.9737]
[1737669523268,0.61507,3251.1,3250.9,1.9737]
[1737669525469,0.00461574,3251.2,3250.9,2.5888]
[1737669526674,0.00461574,3251.2,3251.0,0.61509]
[1737669526869,0.00461574,3251.2,3250.9,1.9737]
[1737669527076,0.61967574,3251.2,3250.9,1.9737]
[1737669527274,0.61507,3251.1,3250.9,1.9737]
[1737669528069,0.00461574,3251.2,3250.9,1.9737]
[1737669528280,0.61967574,3251.2,3250.9,1.9737]
[1737669528578,0.61967574,3251.2,3250.9,2.5888]
[1737669528579,0.00461574,3251.2,3250.9,2.5888]
[1737669528769,0.00461574,3251.2,3250.9,1.9737]
[1737669529083,0.00461574,3251.2,3250.9,2.5888]
[1737669530583,0.00461574,3251.2,3251.0,0.61509]
[1737669530779,2.40043208,3251.1,3250.4,3.2078]
[1737669530980,0.6591,3251.0,3250.4,3.2078]
[1737669531296,0.00461574,3251.2,3251.1,0.61507]
[1737669532299,0.6148,3252.6,3252.2,0.61485]
[1737669532597,3.2078,3252.7,3252.2,0.61485]
[1737669532797,0.6148,3252.6,3252.1,0.61486]
[1737669533194,2.40043208,3252.6,3252.0,3.82268]
[1737669533494,2.40043208,3252.6,3252.0,3.82729574]
[1737669533698,3.21238535,3252.7,3252.3,0.61483]
[1737669533995,0.61479,3252.6,3252.1,0.61488]
[1737669534398,3.21238535,3252.7,3252.1,0.61488]
[1737669534399,0.00458535,3252.7,3252.6,0.61479]
[1737669534600,0.6864,3253.8,3252.7,1.53692]
[1737669534796,0.6864,3253.8,3253.3,3.2078]
[1737669534797,3.08683208,3253.8,3253.3,3.2078]
[1737669534992,0.6864,3253.8,3253.5,0.61462]
[1737669535390,11.51676589,3253.6,3253.5,0.61462]
[1737669535701,11.51676589,3253.6,3253.5,1.23322]
[1737669535889,0.61449,3254.2,3253.5,0.6186]
[1737669536089,0.61449,3254.2,3253.8,3.2078]
[1737669536294,0.61445,3254.4,3253.8,3.2078]
[1737669536502,0.61449,3254.2,3253.8,3.2078]
[1737669536700,0.61451,3254.1,3253.8,3.2078]
[1737669537101,0.61451,3254.1,3253.7,0.00461574]
[1737669537303,0.61451,3254.1,3253.8,3.2078]
[1737669537499,0.6864,3254.5,3253.8,3.2078]
[1737669537696,3.51672049,3255.0,3254.3,0.61446]
[1737669537896,0.61436,3254.9,3254.2,3.82228]
[1737669538297,0.61445,3254.5,3254.2,3.2078]
[1737669538703,2.90238049,3254.6,3254.2,3.2078]
[1737669538903,3.51680049,3254.6,3253.9,0.61454]
[1737669540399,3.51680049,3254.6,3253.9,0.61453]
[1737669540606,2.90238049,3254.6,3253.9,0.61453]
[1737669540803,3.57178049,3255.0,3254.1,3.2078]
[1737669541000,0.61437,3254.8,3254.1,44.62229]
[1737669541196,0.61437,3254.8,3254.2,0.61448]
[1737669541604,0.61437,3254.8,3254.1,3.82229]
[1737669541806,6.77958049,3255.0,3254.1,3.2078]
[1737669542710,0.61443,3254.5,3254.1,3.2078]
[1737669542899,2.90238049,3254.6,3254.1,3.2078]
[1737669542900,0.61448,3254.2,3254.1,3.2078]
[1737669543208,0.61453,3254.0,3253.7,3.21241574]
[1737669543805,0.61456,3253.8,3253.7,3.21241574]
[1737669544213,0.6791,3254.1,3253.7,3.21241574]
[1737669544604,0.6791,3254.1,3253.7,0.00461574]
[1737669544908,0.61456,3253.8,3253.7,0.00461574]
[1737669547104,3.51694049,3253.8,3253.7,0.00461574]
[1737669547609,2.90238049,3253.8,3252.6,3.2078]
[1737669547805,3.2078,3253.6,3252.6,3.2078]
[1737669548007,3.2078,3253.6,3252.7,0.61477]
[1737669548205,2.90238049,3253.0,3252.6,3.2078]
[1737669548405,0.61477,3252.7,3252.6,3.2078]
[1737669548905,0.6416,3252.9,3252.3,0.00461574]
[1737669549113,0.61482,3252.4,3252.3,0.00461574]
[1737669550606,0.6416,3252.9,3252.3,0.00461574]
[1737669550907,0.6416,3252.9,3252.3,0.65381574]
[1737669551107,0.61477,3252.7,3252.3,0.65381574]
[1737669551307,0.6416,3252.9,3252.3,0.00461574]
[1737669551507,0.61482,3252.4,3252.3,0.00461574]
[1737669551910,0.6148,3252.5,3252.3,0.00461574]
[1737669552109,0.61482,3252.5,3252.3,0.00461574]
[1737669552818,0.61475,3252.8,3252.3,0.00461574]
[1737669553012,0.6416,3252.9,3252.3,0.00461574]
[1737669553214,0.61475,3252.8,3252.3,0.00461574]
[1737669553515,0.6148,3252.6,3252.3,0.00461574]
[1737669553906,0.61482,3252.4,3252.3,0.00461574]
[1737669559819,3.012919,3252.4,3252.3,0.00461574]
[1737669560619,0.61503,3251.3,3251.2,3.8683]
[1737669560825,0.61503,3251.3,3251.2,3.2078]
[1737669561219,0.61502,3251.4,3251.2,3.2078]
[1737669561418,2.398099,3251.9,3251.2,3.2078]
[1737669561620,0.61502,3251.4,3251.2,3.2078]
[1737669561820,0.61502,3251.4,3251.2,3.21241574]
[1737669562216,0.615,3251.5,3251.2,3.21241574]
[1737669562624,0.61499,3251.6,3251.2,3.21241574]
[1737669563019,0.61499,3251.6,3251.2,3.82746574]
[1737669563217,0.61499,3251.6,3251.3,0.4968]
[1737669563417,2.398099,3251.9,3251.3,0.4968]
[1737669563722,0.61493,3251.9,3251.3,0.4968]
[1737669563928,0.61491,3252.0,3251.5,0.61498]
[1737669564228,2.398099,3252.2,3251.4,0.61501]
[1737669564521,2.398099,3252.2,3251.3,0.4968]
[1737669564522,0.61497,3251.7,3251.3,0.4968]
[1737669564925,2.398099,3251.9,3251.3,1.11182]
[1737669565120,2.398099,3251.9,3251.3,0.4968]
[1737669565320,0.61494,3251.8,3251.4,0.615]
[1737669566024,0.4974,3252.3,3251.6,3.2078]
[1737669566223,0.61485,3252.3,3251.7,1.0677]
[1737669566423,0.61487,3252.2,3251.8,0.61494]
[1737669566827,0.61485,3252.3,3251.9,41.41491]
[1737669567028,0.61485,3252.3,3252.0,0.4962]
[1737669567328,0.61484,3252.3,3252.0,0.4962]
[1737669567630,0.5067,3252.4,3252.0,0.4962]
[1737669567829,0.61484,3252.3,3252.0,0.4962]
[1737669568431,0.5067,3252.4,3251.6,3.2078]
[1737669568618,0.5067,3252.4,3251.8,0.61493]
[1737669568825,0.61488,3252.1,3251.7,1.13435]
[1737669569020,0.61488,3252.1,3251.8,40.8]
[1737669569224,0.61487,3252.2,3251.8,40.8]
[1737669569431,0.61487,3252.2,3251.8,41.41494]
[1737669570026,2.398099,3252.2,3251.8,40.8]
[1737669570331,0.5067,3252.4,3251.6,3.2078]
[1737669570332,0.61496,3251.7,3251.6,3.2078]
[1737669570830,0.61503,3251.3,3251.2,0.00461574]
[1737669571022,6.220929,3251.3,3251.2,0.00461574]
[1737669571530,7.143489,3251.3,3250.5,3.2078]
[1737669571724,0.61505,3251.2,3250.6,0.61515]
[1737669571928,5.605899,3251.3,3250.5,3.2078]
[1737669572129,0.61505,3251.2,3250.5,3.2078]
[1737669572428,0.61507,3251.1,3250.6,0.61515]
[1737669572821,0.61507,3251.1,3250.5,3.82759574]
[1737669574932,0.61509,3251.0,3250.5,3.21241574]
[1737669575321,0.00461574,3251.2,3250.5,3.21241574]
[1737669575526,0.6151,3251.0,3250.5,3.21241574]
[1737669576237,0.6151,3251.0,3250.6,40.8]
[1737669576933,0.61511,3250.9,3250.6,40.8]
[1737669577228,0.00461574,3251.2,3250.6,40.8]
[1737669577422,0.6151,3251.0,3250.6,40.8]
[1737669578432,0.6151,3251.0,3250.6,41.3409]
[1737669578630,0.6151,3251.0,3250.6,41.8755]
[1737669579130,3.21241574,3251.2,3250.6,41.8755]
[1737669579329,0.61511,3250.9,3250.6,41.8755]
[1737669579523,0.6151,3251.0,3250.6,41.8755]
[1737669579729,0.6151,3251.0,3250.7,0.03588643]
[1737669580133,0.61512,3250.9,3250.7,0.03588643]
[1737669580328,0.61513,3250.8,3250.7,0.03588643]
[1737669580527,3.518729,3250.8,3250.7,0.03588643]
[1737669581126,0.61516,3250.6,3250.5,0.00461574]
[1737669583430,2.15319,3250.5,3249.3,4.7187]
[1737669583636,0.61529,3250.0,3249.3,5.3341]
[1737669583928,2.398099,3250.2,3249.3,4.7187]
[1737669584138,0.6153,3249.9,3249.3,4.7187]
[1737669584530,0.6153,3249.9,3249.3,4.72331574]
[1737669584728,2.398099,3250.2,3249.3,4.72331574]
[1737669584729,0.61526,3250.1,3249.3,4.72331574]
[1737669584929,0.6153,3249.9,3249.3,5.33872574]
[1737669585230,0.61533,3249.8,3249.3,4.72331574]
[1737669585432,0.61532,3249.8,3249.3,5.33871574]
[1737669585635,2.398099,3250.2,3249.4,0.61538]
[1737669585636,0.6153,3249.9,3249.4,0.61538]
[1737669586345,2.398099,3250.2,3249.4,0.61538]
[1737669586346,0.61532,3249.8,3249.4,0.61538]
[1737669586530,0.61532,3249.8,3249.3,5.33871574]
[1737669586832,0.61535,3249.7,3249.3,4.72331574]
[1737669587024,0.61533,3249.8,3249.4,0.61539]
[1737669588129,0.61534,3249.7,3249.4,0.61539]
[1737669588326,2.398099,3250.2,3249.3,4.72331574]
[1737669588539,2.398099,3249.9,3249.3,4.72331574]
[1737669588737,2.398099,3249.9,3249.3,5.33871574]
[1737669588938,0.61535,3249.7,3249.3,5.33871574]
[1737669589238,0.61535,3249.6,3249.3,5.33871574]
[1737669589441,0.5086,3250.3,3249.3,4.72331574]
[1737669589637,0.5086,3250.3,3249.7,3.2078]
[1737669589840,0.61526,3250.1,3249.8,0.6153]
[1737669590232,3.2078,3250.4,3249.7,3.2078]
[1737669590542,0.61527,3250.1,3249.8,0.61531]
[1737669590836,3.2078,3250.4,3249.9,0.61529]
[1737669591037,0.61525,3250.2,3250.0,0.4839]
[1737669591743,0.61522,3250.3,3250.0,0.4839]
[1737669592034,0.61521,3250.4,3250.0,0.4839]
[1737669592239,2.398099,3250.5,3250.0,1.09917]
[1737669592441,2.398099,3250.5,3250.0,0.4839]
[1737669592633,0.61521,3250.4,3250.0,0.4839]
[1737669593034,0.61523,3250.3,3250.0,0.4839]
[1737669593232,0.61521,3250.4,3250.0,0.4839]
[1737669593644,0.61523,3250.3,3250.0,0.4839]
[1737669593833,0.61521,3250.4,3250.0,0.4839]
[1737669594139,0.4925,3250.7,3250.3,0.61521]
[1737669594335,0.6151,3251.0,3250.5,0.61517]
[1737669595138,3.013179,3251.1,3250.6,0.61516]
[1737669595441,0.61509,3251.0,3250.7,0.4884]
[1737669595834,2.398099,3251.1,3250.7,0.4884]
[1737669596033,0.61509,3251.0,3250.7,0.4884]
[1737669596737,0.61511,3250.9,3250.7,0.4884]
[1737669598232,2.398099,3251.1,3250.7,0.4884]
[1737669598443,0.61519,3250.5,3250.1,4.202]
[1737669598741,0.61524,3250.2,3250.1,3.2078]
[1737669599238,0.61524,3250.3,3249.9,0.4832]
[1737669599435,0.61524,3250.3,3250.1,3.2078]
[1737669599635,0.5176,3250.4,3250.1,3.2078]
[1737669599839,0.5291,3250.7,3250.1,3.2078]
[1737669600037,0.61515,3250.7,3250.3,0.61522]
[1737669600445,0.61513,3250.8,3250.3,0.61521]
[1737669600743,0.61514,3250.7,3250.1,3.2078]
[1737669601039,3.2078,3250.9,3250.1,3.2078]
[1737669601040,2.398099,3250.5,3250.1,3.2078]
[1737669601239,3.2078,3250.9,3250.1,3.2078]
[1737669601444,0.61513,3250.8,3250.4,0.6152]
[1737669601741,0.61513,3250.8,3250.1,3.2078]
[1737669601946,0.61516,3250.7,3250.3,0.61522]
[1737669602145,3.2078,3250.9,3250.2,0.61523]
[1737669602146,0.61513,3250.8,3250.2,0.61523]
[1737669602350,0.61516,3250.7,3250.2,0.61523]
[1737669602951,0.5254,3251.0,3250.2,0.61523]
[1737669603249,0.61517,3250.6,3250.2,0.61523]
[1737669603444,0.5254,3251.0,3250.4,0.61519]
[1737669603445,0.61512,3250.9,3250.4,0.61519]
[1737669603854,0.5254,3251.0,3250.3,0.6152]
[1737669604053,0.61513,3250.8,3250.3,0.6152]
[1737669604351,0.61513,3250.8,3250.1,3.2078]
[1737669604551,0.61515,3250.7,3250.3,0.61521]
[1737669605050,0.5254,3251.0,3250.1,3.2078]
[1737669605249,0.61524,3250.2,3250.1,3.2078]
[1737669605552,0.61531,3249.8,3249.7,3.2078]
[1737669608750,0.61539,3249.4,3249.3,0.00461574]
[1737669609054,0.61541,3249.3,3248.3,5.39449]
[1737669609248,2.398099,3249.0,3248.3,45.5789]
[1737669609447,0.61558,3248.4,3248.3,42.3711]
[1737669609643,2.398099,3248.7,3247.9,3.2078]
[1737669609847,0.61559,3248.4,3247.9,3.2078]
[1737669610043,2.398099,3248.7,3247.9,3.2078]
[1737669610044,0.6156,3248.3,3247.9,3.2078]
[1737669610251,0.6156,3248.3,3248.0,0.00461574]
[1737669610653,2.398099,3248.4,3248.1,40.8]
[1737669610954,0.00461574,3248.6,3248.2,0.61561]
[1737669611256,0.00461574,3248.6,3248.0,0.00461574]
[1737669611652,0.00461574,3248.6,3248.2,0.61561]
[1737669612062,0.00461574,3248.6,3248.3,0.4949]
[1737669612360,0.62016574,3248.6,3248.3,0.4949]
[1737669612557,0.62015574,3248.6,3248.3,0.4949]
[1737669612859,0.00461574,3248.6,3248.5,3.2078]
[1737669613953,0.00461574,3248.6,3248.5,44.0078]
[1737669616554,0.00461574,3248.6,3248.5,40.8]
[1737669616758,0.61564,3248.1,3248.0,3.21241574]
[1737669617754,0.61564,3248.1,3248.0,0.00461574]
[1737669617956,0.00461574,3248.6,3248.0,3.21241574]
[1737669618262,0.00461574,3248.6,3248.5,3.2078]
[1737669618461,0.00461574,3248.6,3248.5,3.82336]
[1737669619065,0.00461574,3248.6,3248.5,44.62336]
[1737669620456,3.2078,3249.7,3248.5,49.62336]
[1737669620662,3.2078,3249.7,3249.5,0.61536]
[1737669620864,3.2078,3249.7,3249.6,0.4986]
[1737669621258,3.82313,3249.7,3249.6,0.4986]
[1737669621461,3.2078,3249.7,3248.9,3.2078]
[1737669621657,0.61547,3249.0,3248.9,3.2078]
[1737669622661,3.2078,3249.3,3248.9,3.2078]
[1737669622862,0.4992,3249.2,3248.9,3.2078]
[1737669623161,0.61545,3249.1,3248.9,3.2078]
[1737669624453,0.4992,3249.2,3248.9,3.2078]
[1737669624657,0.61546,3249.1,3248.9,3.2078]
[1737669625559,0.4992,3249.2,3249.1,0.61545]
[1737669625766,0.61534,3249.7,3249.2,0.61542]
[1737669625964,0.61534,3249.7,3248.9,3.2078]
[1737669625965,3.7083,3249.8,3249.4,0.61538]
[1737669626164,3.7083,3249.8,3249.3,3.2078]
[1737669626657,3.7083,3249.8,3249.4,0.61538]
[1737669626854,3.7083,3249.8,3249.3,3.2078]
[1737669627053,15.84124061,3250.3,3249.9,0.6153]
[1737669627054,2.91224061,3250.3,3249.9,0.6153]
[1737669627366,3.89114061,3250.7,3249.9,0.6153]
[1737669627559,3.2078,3251.3,3249.9,45.8]
[1737669627863,4.32364,3251.3,3250.5,3.2078]
[1737669628164,3.7086,3251.3,3250.5,3.2078]
[1737669628464,0.61516,3250.6,3250.5,3.2078]
[1737669628664,2.91224061,3251.1,3250.5,3.2078]
[1737669628859,0.00461574,3251.2,3250.5,3.2078]
[1737669629063,0.00461574,3251.2,3250.9,3.2078]
[1737669629261,0.00461574,3251.2,3251.1,0.61507]
[1737669630057,0.00461574,3251.2,3251.0,1.58999]
[1737669630459,0.00461574,3251.2,3251.0,0.4903]
[1737669630666,0.00461574,3251.2,3250.9,3.2078]
[1737669630667,0.61509,3251.0,3250.9,3.2078]
[1737669630964,0.61508,3251.1,3250.9,3.2078]
[1737669631162,0.61509,3251.0,3250.9,3.2078]
[1737669631766,0.493,3251.1,3250.9,3.2078]
[1737669632165,0.61509,3251.0,3250.9,3.2078]
[1737669632962,1.10807,3251.1,3250.9,3.2078]
[1737669633161,0.493,3251.1,3250.9,3.2078]
[1737669633465,1.10808,3251.1,3250.9,3.2078]
[1737669633665,0.61509,3251.0,3250.9,3.2078]
[1737669634268,1.10808,3251.1,3250.9,3.2078]
[1737669634565,0.61509,3251.0,3250.9,3.2078]
[1737669634770,1.10808,3251.1,3250.9,3.2078]
[1737669635465,0.61509,3251.0,3250.9,3.2078]
[1737669635668,0.61516,3250.6,3250.5,3.2078]
[1737669635860,0.61526,3250.1,3249.7,0.4923]
[1737669636063,0.6152,3250.4,3249.8,0.61531]
[1737669636568,0.61524,3250.2,3249.7,1.10762]
[1737669636762,0.6152,3250.4,3249.8,0.61531]
[1737669636963,0.61523,3250.3,3249.8,0.61531]
[1737669637163,0.61522,3250.4,3249.8,0.61531]
[1737669637364,2.91224061,3250.5,3249.7,0.4923]
[1737669637570,0.61523,3250.3,3249.7,1.10762]
[1737669637771,0.61524,3250.3,3249.7,1.10762]
[1737669637975,0.61526,3250.2,3249.7,0.4923]
[1737669638164,0.61526,3250.2,3249.7,1.10763]
[1737669638364,0.61533,3249.7,3249.6,3.21241574]
[1737669638567,3.52757061,3249.7,3249.6,3.21241574]
[1737669638774,0.61533,3249.7,3249.6,3.21241574]
[1737669639577,3.2078,3250.3,3249.6,3.21241574]
[1737669639578,3.2078,3250.7,3249.6,3.21241574]
[1737669639760,0.05202653,3250.6,3250.0,3.2078]
[1737669639961,0.9874,3250.8,3250.0,3.2078]
[1737669640163,0.6152,3250.5,3250.0,3.82307]
[1737669640371,1.60254,3250.8,3250.0,3.2078]
[1737669640771,0.9874,3250.8,3250.0,3.82307]
[1737669640964,0.61516,3250.7,3250.0,3.2078]
[1737669641167,0.498,3250.8,3250.1,0.61526]
[1737669641465,0.61525,3250.2,3249.9,3.2078]
[1737669641665,0.498,3250.8,3249.9,3.2078]
[1737669642069,0.498,3250.8,3250.3,3.2078]
[1737669642273,0.498,3250.8,3250.4,1.4857]
[1737669642867,1.11313,3250.8,3250.4,1.4857]
[1737669643266,0.61513,3250.8,3250.4,1.4857]
[1737669643665,3.2078,3251.1,3250.4,1.4857]
[1737669643874,0.61515,3250.7,3250.4,1.4857]
[1737669644670,0.61514,3250.8,3250.5,40.8]
[1737669644872,0.61514,3250.7,3250.5,40.8]
[1737669645073,0.61513,3250.8,3250.5,40.8]
[1737669645269,0.50431574,3251.2,3250.7,3.2078]
[1737669645473,0.61512,3250.8,3250.7,3.2078]
[1737669647673,1.53788,3250.7,3250.2,3.2078]
[1737669647880,3.2078,3250.6,3249.7,0.5172]
[1737669648071,0.61531,3249.8,3249.7,0.5172]
[1737669648472,0.6153,3249.9,3249.7,0.5172]
[1737669648679,0.61531,3249.8,3249.7,0.5172]
[1737669649080,0.61533,3249.7,3249.6,0.00461574]
[1737669649273,4.02917061,3249.7,3249.6,0.00461574]
[1737669649973,4.52547061,3249.7,3249.6,0.00461574]
[1737669650170,3.96218065,3249.7,3248.5,4.6926]
[1737669650478,0.61554,3248.6,3248.5,3.2078]
[1737669650669,0.61564,3248.1,3247.5,41.41573]
[1737669650881,3.2078,3248.6,3247.5,41.41573]
[1737669651083,0.61564,3248.1,3247.5,41.41573]
[1737669651290,0.61564,3248.1,3247.6,0.61573]
[1737669651575,0.00461574,3248.1,3248.0,0.61565]
[1737669651968,3.82327,3249.0,3248.0,5.0]
[1737669652168,3.82327,3249.0,3248.5,3.82334]
[1737669652371,3.82327,3249.0,3248.5,3.2078]
[1737669652372,3.2078,3249.0,3248.5,3.2078]
[1737669652678,3.2078,3249.0,3248.4,3.2078]
[1737669652982,0.61552,3248.7,3248.4,3.2078]
[1737669653177,0.00461574,3249.0,3248.8,0.61549]
[1737669653480,0.61531,3249.8,3249.4,0.61537]
[1737669653790,0.61524,3250.2,3249.7,3.2078]
[1737669653976,0.61524,3250.2,3249.8,1.5816]
[1737669654169,0.61527,3250.1,3249.9,40.8]
[1737669654369,0.61527,3250.0,3249.9,40.8]
[1737669654569,0.61525,3250.2,3249.9,40.8]
[1737669654776,0.61527,3250.1,3249.9,40.8]
[1737669655372,0.00461574,3250.3,3249.9,40.8]
[1737669655570,3.2078,3251.1,3250.2,3.2078]
[1737669655775,2.91224061,3251.7,3250.6,3.2078]
[1737669655776,3.2078,3251.6,3250.6,3.2078]
[1737669655978,3.2078,3251.6,3250.7,0.61514]
[1737669656179,0.61509,3251.0,3250.8,40.8]
[1737669656382,3.2078,3251.6,3250.8,40.8]
[1737669656579,0.6151,3250.9,3250.8,40.8]
[1737669657276,3.2078,3251.1,3249.7,0.00461574]
[1737669657277,4.7455,3251.1,3249.7,0.00461574]
[1737669657478,0.61526,3250.1,3249.7,3.82773574]
[1737669657678,3.2078,3250.5,3249.7,3.21241574]
[1737669658182,0.61524,3250.3,3249.8,0.6153]
[1737669658479,3.2078,3250.5,3249.7,3.21241574]
[1737669658676,3.7163,3251.2,3250.4,3.2078]
[1737669658876,0.61508,3251.1,3250.6,0.61516]
[1737669659274,0.61515,3250.7,3250.5,0.5184]
[1737669659676,3.7163,3251.2,3250.5,0.5184]
[1737669660083,0.6151,3251.0,3250.5,1.13357]
[1737669660678,0.61508,3251.1,3250.6,0.61516]
[1737669660885,0.61508,3251.1,3250.7,0.61514]
[1737669661383,0.61513,3250.8,3250.4,3.823]
[1737669661591,3.7163,3251.2,3250.4,3.2078]
[1737669661776,3.7163,3251.2,3250.7,0.61514]
[1737669662085,4.33136,3251.2,3250.8,0.61512]
[1737669662284,3.7163,3251.2,3250.4,3.2078]
[1737669662480,0.6151,3251.0,3250.6,0.61516]
[1737669662786,0.61508,3251.1,3250.7,0.61513]
[1737669663088,4.33136,3251.2,3250.8,41.41512]
[1737669663675,0.61501,3251.4,3250.8,40.8]
[1737669663875,0.00461574,3251.5,3251.4,0.61501]
[1737669664383,0.00461574,3251.5,3251.3,0.61502]
[1737669664684,0.00461574,3251.5,3251.4,0.61501]
[1737669664890,0.00461574,3251.5,3251.2,3.82283]
[1737669665192,0.00461574,3251.5,3250.9,1.5303]
[1737669665193,0.61506,3251.2,3250.9,4.7381]
[1737669665384,0.61506,3251.2,3250.9,5.3532]
[1737669666191,0.00461574,3251.5,3250.9,4.7381]
[1737669666389,0.61505,3251.2,3251.0,3.2078]
[1737669666987,3.2078,3251.4,3250.4,3.2078]
[1737669667292,3.2078,3251.0,3250.4,3.2078]
[1737669667482,0.5087,3251.1,3250.4,3.2078]
[1737669667680,0.61512,3250.9,3250.6,0.61515]
[1737669667992,0.61512,3250.9,3250.7,0.61514]
[1737669668285,3.2078,3251.4,3250.4,3.2078]
[1737669668490,3.2078,3251.4,3250.8,3.2078]
[1737669668790,3.2078,3251.4,3250.9,2.1241]
[1737669669088,0.61507,3251.1,3250.9,2.1241]
[1737669669382,0.61506,3251.2,3250.9,2.1241]
[1737669669584,0.61506,3251.2,3250.9,1.509]
[1737669669790,0.61506,3251.2,3251.0,0.61508]
[1737669669992,3.2078,3251.4,3250.9,1.509]
[1737669670187,0.61505,3251.3,3251.0,0.61508]
[1737669670387,0.61505,3251.3,3251.1,0.61507]